[Event "*** Titled Tuesday Blitz"]
[Site "Chess.com"]
[Date "2020.05.26"]
[Round "3"]
[White "miruna_daria28"]
[Black "larisakalinina"]
[Result "1-0"]
[WhiteElo "2269"]
[BlackElo "1957"]
[TimeControl "180+1"]
[EndTime "10:26:42 PDT"]
[Termination "miruna_daria28 won by resignation"]

1. e4 {[%clk 0:03:00.9]} 1... c5 {[%clk 0:03:00.1]} 2. Nf3 {[%clk 0:02:59.8]}
2... Nc6 {[%clk 0:03:00.3]} 3. d4 {[%clk 0:02:58.3]} 3... cxd4 {[%clk 0:02:59]}
4. Nxd4 {[%clk 0:02:56.9]} 4... Nf6 {[%clk 0:02:59.3]} 5. Nc3 {[%clk 0:02:54.6]}
5... d6 {[%clk 0:02:59.6]} 6. Bg5 {[%clk 0:02:51.1]} 6... Bd7 {[%clk 0:02:57.5]}
7. f3 {[%clk 0:02:48.5]} 7... Rc8 {[%clk 0:02:54.9]} 8. Nxc6 {[%clk 0:02:42.9]}
8... bxc6 {[%clk 0:02:43.5]} 9. Qd2 {[%clk 0:02:41.4]} 9... h6 {[%clk
0:02:43.4]} 10. Be3 {[%clk 0:02:39.8]} 10... Qa5 {[%clk 0:02:41.1]} 11. Bc4
{[%clk 0:02:32.5]} 11... g5 {[%clk 0:02:06.7]} 12. g4 {[%clk 0:02:06]} 12... Bg7
{[%clk 0:01:50.2]} 13. h4 {[%clk 0:02:00.1]} 13... Qe5 {[%clk 0:01:10.7]} 14.
O-O-O {[%clk 0:01:51]} 14... gxh4 {[%clk 0:01:05]} 15. Rxh4 {[%clk 0:01:45.8]}
15... Qg3 {[%clk 0:01:00.9]} 16. Rdh1 {[%clk 0:01:27.8]} 16... Qxf3 {[%clk
0:00:56]} 17. Bxh6 {[%clk 0:01:25.1]} 17... Nxe4 {[%clk 0:00:20.4]} 18. Nxe4
{[%clk 0:01:18.8]} 18... Bxg4 {[%clk 0:00:07.2]} 19. Bxg7 {[%clk 0:01:12.1]}
19... Rxh4 {[%clk 0:00:07.5]} 20. Rxh4 {[%clk 0:01:11.8]} 20... Qxe4 {[%clk
0:00:05]} 21. Bd3 {[%clk 0:00:49.4]} 21... Qg2 {[%clk 0:00:01.3]} 22. Qxg2
{[%clk 0:00:48.5]} 1-0

[Event "*** Titled Tuesday Blitz"]
[Site "Chess.com"]
[Date "2020.05.26"]
[Round "3"]
[White "NewBornNow"]
[Black "crossingthestreet"]
[Result "1-0"]
[WhiteElo "2707"]
[BlackElo "2254"]
[TimeControl "180+1"]
[EndTime "10:26:43 PDT"]
[Termination "NewBornNow won on time"]

1. e4 {[%clk 0:03:00.9]} 1... e6 {[%clk 0:03:00.1]} 2. d3 {[%clk 0:02:57.9]}
2... d5 {[%clk 0:02:59.4]} 3. Qe2 {[%clk 0:02:57.3]} 3... dxe4 {[%clk 0:02:57]}
4. dxe4 {[%clk 0:02:56.2]} 4... e5 {[%clk 0:02:57.1]} 5. Nf3 {[%clk 0:02:56.3]}
5... Nc6 {[%clk 0:02:57]} 6. c3 {[%clk 0:02:55.1]} 6... Nf6 {[%clk 0:02:55.3]}
7. Qc2 {[%clk 0:02:54.7]} 7... Be7 {[%clk 0:02:49.7]} 8. Bb5 {[%clk 0:02:53.5]}
8... Bd6 {[%clk 0:02:38.6]} 9. O-O {[%clk 0:02:52]} 9... O-O {[%clk 0:02:38.5]}
10. Bg5 {[%clk 0:02:50.1]} 10... h6 {[%clk 0:02:35]} 11. Bh4 {[%clk 0:02:49.2]}
11... Bd7 {[%clk 0:02:34.4]} 12. a4 {[%clk 0:02:42.9]} 12... a6 {[%clk
0:02:31.2]} 13. Bc4 {[%clk 0:02:41.6]} 13... Qe7 {[%clk 0:02:18.9]} 14. Nbd2
{[%clk 0:02:39.9]} 14... g5 {[%clk 0:02:18.5]} 15. Bg3 {[%clk 0:02:38.7]} 15...
Nh5 {[%clk 0:02:15.1]} 16. Rfe1 {[%clk 0:02:30.6]} 16... Nf4 {[%clk 0:02:14.3]}
17. Nf1 {[%clk 0:02:28.9]} 17... Be6 {[%clk 0:02:02.8]} 18. Ne3 {[%clk
0:02:26.5]} 18... Qd7 {[%clk 0:01:57.7]} 19. Rad1 {[%clk 0:02:22.7]} 19... Rad8
{[%clk 0:01:51]} 20. Bxe6 {[%clk 0:02:20.1]} 20... fxe6 {[%clk 0:01:48.5]} 21.
Nc4 {[%clk 0:02:18.5]} 21... Qf7 {[%clk 0:01:37.4]} 22. Bxf4 {[%clk 0:02:11.4]}
22... gxf4 {[%clk 0:01:26.4]} 23. b4 {[%clk 0:02:07.2]} 23... b5 {[%clk
0:01:23.5]} 24. axb5 {[%clk 0:02:06]} 24... axb5 {[%clk 0:01:24.4]} 25. Nb2
{[%clk 0:02:05.4]} 25... Kh8 {[%clk 0:01:19.8]} 26. Kh1 {[%clk 0:02:05]} 26...
Rg8 {[%clk 0:01:18.8]} 27. Rg1 {[%clk 0:02:04.1]} 27... Qh5 {[%clk 0:01:17.1]}
28. Qe2 {[%clk 0:01:58.6]} 28... Na7 {[%clk 0:00:40.9]} 29. Nd3 {[%clk
0:01:49.2]} 29... Rg7 {[%clk 0:00:36.9]} 30. Ndxe5 {[%clk 0:01:34.7]} 30... Rdg8
{[%clk 0:00:32.5]} 31. Nd3 {[%clk 0:01:33.8]} 31... Nc6 {[%clk 0:00:21]} 32. e5
{[%clk 0:01:30.7]} 32... Be7 {[%clk 0:00:13.5]} 33. Nxf4 {[%clk 0:01:29.7]}
33... Qg4 {[%clk 0:00:11.9]} 34. Qe4 {[%clk 0:01:19]} 34... Rf8 {[%clk
0:00:06.9]} 35. g3 {[%clk 0:01:17.7]} 1-0

[Event "*** Titled Tuesday Blitz"]
[Site "Chess.com"]
[Date "2020.05.26"]
[Round "3"]
[White "MasterKroket"]
[Black "Kirill_Klukin"]
[Result "0-1"]
[WhiteElo "2416"]
[BlackElo "2698"]
[TimeControl "180+1"]
[EndTime "10:26:45 PDT"]
[Termination "Kirill_Klukin won by resignation"]

1. d4 {[%clk 0:03:00.9]} 1... Nf6 {[%clk 0:02:59.5]} 2. c4 {[%clk 0:03:00.5]}
2... Nc6 {[%clk 0:02:59.8]} 3. Nf3 {[%clk 0:02:59]} 3... e6 {[%clk 0:02:59.7]}
4. a3 {[%clk 0:02:58.8]} 4... d6 {[%clk 0:02:59.5]} 5. Nc3 {[%clk 0:02:59.1]}
5... g6 {[%clk 0:02:59.2]} 6. e4 {[%clk 0:02:59]} 6... Bg7 {[%clk 0:02:59.1]} 7.
h3 {[%clk 0:02:56.4]} 7... O-O {[%clk 0:02:58.9]} 8. Be3 {[%clk 0:02:56.2]} 8...
Re8 {[%clk 0:02:59]} 9. Be2 {[%clk 0:02:54.1]} 9... e5 {[%clk 0:02:59.3]} 10. d5
{[%clk 0:02:54.4]} 10... Nd4 {[%clk 0:02:59.4]} 11. Nxd4 {[%clk 0:02:53.9]}
11... exd4 {[%clk 0:02:59.4]} 12. Bxd4 {[%clk 0:02:53.7]} 12... Nxe4 {[%clk
0:02:59.9]} 13. Bxg7 {[%clk 0:02:52]} 13... Kxg7 {[%clk 0:03:00.8]} 14. Nxe4
{[%clk 0:02:51.8]} 14... Rxe4 {[%clk 0:03:01.4]} 15. O-O {[%clk 0:02:52.4]}
15... Qf6 {[%clk 0:03:01.1]} 16. Qc2 {[%clk 0:02:45]} 16... Bf5 {[%clk
0:03:00.5]} 17. Bd3 {[%clk 0:02:43.3]} 17... Rf4 {[%clk 0:02:53.2]} 18. Bxf5
{[%clk 0:02:40]} 18... Rxf5 {[%clk 0:02:53.4]} 19. Rfe1 {[%clk 0:02:39.7]} 19...
h5 {[%clk 0:02:52.2]} 20. Re2 {[%clk 0:02:37]} 20... a5 {[%clk 0:02:49.9]} 21.
a4 {[%clk 0:02:33.1]} 21... Ra6 {[%clk 0:02:49.7]} 22. Rae1 {[%clk 0:02:30.2]}
22... Rb6 {[%clk 0:02:49.7]} 23. b3 {[%clk 0:02:30.7]} 23... c6 {[%clk
0:02:22.3]} 24. dxc6 {[%clk 0:02:28.5]} 24... bxc6 {[%clk 0:02:23.2]} 25. Re3
{[%clk 0:02:14.6]} 25... d5 {[%clk 0:02:19]} 26. cxd5 {[%clk 0:02:06.4]} 26...
cxd5 {[%clk 0:02:09.3]} 27. Qc5 {[%clk 0:01:54.3]} 27... Rc6 {[%clk 0:01:33.1]}
28. Qxa5 {[%clk 0:01:36.2]} 28... d4 {[%clk 0:01:22.8]} 29. Re5 {[%clk
0:01:33.2]} 29... Rxf2 {[%clk 0:01:22.5]} 30. R5e2 {[%clk 0:00:43.6]} 30... Rxe2
{[%clk 0:01:06.6]} 31. Rxe2 {[%clk 0:00:44.5]} 31... d3 {[%clk 0:01:06.8]} 32.
Rd2 {[%clk 0:00:15.4]} 32... Rc1+ {[%clk 0:01:06.5]} 33. Kh2 {[%clk 0:00:15.5]}
33... Qf4+ {[%clk 0:01:05.9]} 34. g3 {[%clk 0:00:15.5]} 34... Qxd2+ {[%clk
0:01:03.9]} 35. Qxd2 {[%clk 0:00:14.8]} 35... Rc2 {[%clk 0:01:04.3]} 0-1

[Event "*** Titled Tuesday Blitz"]
[Site "Chess.com"]
[Date "2020.05.26"]
[Round "3"]
[White "Caterpiller35"]
[Black "zurzan"]
[Result "1-0"]
[WhiteElo "2261"]
[BlackElo "1924"]
[TimeControl "180+1"]
[EndTime "10:26:47 PDT"]
[Termination "Caterpiller35 won by resignation"]

1. e4 {[%clk 0:03:00.8]} 1... Nf6 {[%clk 0:02:59.5]} 2. e5 {[%clk 0:02:59.9]}
2... Nd5 {[%clk 0:02:59.7]} 3. d4 {[%clk 0:02:59.4]} 3... d6 {[%clk 0:03:00]} 4.
Nf3 {[%clk 0:02:58]} 4... g6 {[%clk 0:03:00.5]} 5. Bc4 {[%clk 0:02:57.6]} 5...
Nb6 {[%clk 0:03:00.2]} 6. Bb3 {[%clk 0:02:57.8]} 6... Bg7 {[%clk 0:03:00.3]} 7.
a4 {[%clk 0:02:57.8]} 7... a5 {[%clk 0:02:59.6]} 8. O-O {[%clk 0:02:54.2]} 8...
O-O {[%clk 0:02:59.3]} 9. Nbd2 {[%clk 0:02:54]} 9... Nc6 {[%clk 0:02:57.8]} 10.
h3 {[%clk 0:02:50.3]} 10... dxe5 {[%clk 0:02:57.2]} 11. dxe5 {[%clk 0:02:45.5]}
11... Nxe5 {[%clk 0:02:57.2]} 12. Nxe5 {[%clk 0:02:45.8]} 12... Bxe5 {[%clk
0:02:56.8]} 13. Re1 {[%clk 0:02:46.4]} 13... Bg7 {[%clk 0:02:54.5]} 14. Qe2
{[%clk 0:02:46.8]} 14... e5 {[%clk 0:02:52.7]} 15. Ne4 {[%clk 0:02:45.2]} 15...
Bf5 {[%clk 0:02:43.2]} 16. Bg5 {[%clk 0:02:44.3]} 16... Qc8 {[%clk 0:02:33.3]}
17. Nf6+ {[%clk 0:02:44.3]} 17... Bxf6 {[%clk 0:02:09.7]} 18. Bxf6 {[%clk
0:02:45.2]} 18... Nd7 {[%clk 0:02:09.8]} 19. Bg5 {[%clk 0:02:36.8]} 19... Be6
{[%clk 0:02:03.8]} 20. Bxe6 {[%clk 0:02:32.7]} 20... fxe6 {[%clk 0:02:03.9]} 21.
Rad1 {[%clk 0:02:31.4]} 21... Rf5 {[%clk 0:01:58.3]} 22. h4 {[%clk 0:02:31.3]}
22... Qe8 {[%clk 0:01:43.3]} 23. Qc4 {[%clk 0:02:19.8]} 23... c6 {[%clk
0:01:40.1]} 24. Rd6 {[%clk 0:02:17.4]} 24... Qf7 {[%clk 0:01:35.2]} 25. Red1
{[%clk 0:02:08.9]} 25... Nf8 {[%clk 0:01:32.7]} 26. f3 {[%clk 0:01:58.6]} 26...
Qg7 {[%clk 0:01:25.3]} 27. b3 {[%clk 0:01:38.3]} 27... h6 {[%clk 0:01:24.7]} 28.
Bc1 {[%clk 0:01:38.2]} 28... Qf6 {[%clk 0:01:18.5]} 29. Bb2 {[%clk 0:01:30.9]}
29... Rf4 {[%clk 0:01:13.8]} 30. Qc5 {[%clk 0:01:28]} 30... Rxh4 {[%clk
0:01:11.6]} 31. Bxe5 {[%clk 0:01:26.1]} 31... Qf5 {[%clk 0:01:06]} 32. Rd8
{[%clk 0:01:18.7]} 32... Rxd8 {[%clk 0:01:04]} 33. Rxd8 {[%clk 0:01:19.6]} 33...
Qf7 {[%clk 0:00:49.4]} 34. Bd6 {[%clk 0:01:13.7]} 34... Rh5 {[%clk 0:00:49.1]}
35. Rxf8+ {[%clk 0:01:04]} 35... Qxf8 {[%clk 0:00:48.6]} 36. Bxf8 {[%clk
0:01:04.9]} 36... Rxc5 {[%clk 0:00:47.3]} 37. Bxc5 {[%clk 0:01:05.8]} 37... b5
{[%clk 0:00:46.3]} 38. Bb6 {[%clk 0:01:02.4]} 38... bxa4 {[%clk 0:00:44.8]} 39.
bxa4 {[%clk 0:01:03.3]} 1-0

[Event "*** Titled Tuesday Blitz"]
[Site "Chess.com"]
[Date "2020.05.26"]
[Round "3"]
[White "barbara25"]
[Black "Chessmatus"]
[Result "0-1"]
[WhiteElo "2207"]
[BlackElo "2480"]
[TimeControl "180+1"]
[EndTime "10:26:48 PDT"]
[Termination "Chessmatus won by resignation"]

1. e4 {[%clk 0:03:00.9]} 1... e5 {[%clk 0:03:00.2]} 2. Nf3 {[%clk 0:03:00]} 2...
Nc6 {[%clk 0:03:00.4]} 3. Bc4 {[%clk 0:02:59.3]} 3... Bc5 {[%clk 0:02:59.7]} 4.
b4 {[%clk 0:02:59.1]} 4... Bxb4 {[%clk 0:02:57.8]} 5. c3 {[%clk 0:02:59]} 5...
Be7 {[%clk 0:02:57.9]} 6. d4 {[%clk 0:02:57.7]} 6... d6 {[%clk 0:02:57.7]} 7.
O-O {[%clk 0:02:57.1]} 7... Nf6 {[%clk 0:02:55.3]} 8. Nbd2 {[%clk 0:02:55.4]}
8... O-O {[%clk 0:02:54.5]} 9. h3 {[%clk 0:02:51.1]} 9... exd4 {[%clk
0:02:45.2]} 10. cxd4 {[%clk 0:02:50.6]} 10... Nxe4 {[%clk 0:02:45.3]} 11. Nxe4
{[%clk 0:02:48.9]} 11... d5 {[%clk 0:02:45.5]} 12. Bd3 {[%clk 0:02:48]} 12...
dxe4 {[%clk 0:02:45.4]} 13. Bxe4 {[%clk 0:02:48.2]} 13... Bf6 {[%clk 0:02:34.2]}
14. Be3 {[%clk 0:02:43.6]} 14... Re8 {[%clk 0:02:31.2]} 15. Bc2 {[%clk
0:02:40.2]} 15... Be6 {[%clk 0:02:22.4]} 16. a3 {[%clk 0:02:39.1]} 16... Bd5
{[%clk 0:02:18.6]} 17. Rb1 {[%clk 0:02:35.9]} 17... Rb8 {[%clk 0:02:14.7]} 18.
Re1 {[%clk 0:02:32.1]} 18... Bxf3 {[%clk 0:01:47.9]} 19. Qxf3 {[%clk 0:02:30.4]}
19... Nxd4 {[%clk 0:01:48.2]} 20. Bxd4 {[%clk 0:02:30.1]} 20... Rxe1+ {[%clk
0:01:48.7]} 21. Rxe1 {[%clk 0:02:28.7]} 21... Bxd4 {[%clk 0:01:48.9]} 22. Re4
{[%clk 0:02:22.9]} 22... Bf6 {[%clk 0:01:27.6]} 23. Rb4 {[%clk 0:02:13.8]} 23...
b6 {[%clk 0:01:19.9]} 24. Rb3 {[%clk 0:02:07.5]} 24... Qd6 {[%clk 0:01:08.2]}
25. Rd3 {[%clk 0:02:04.2]} 25... Qe5 {[%clk 0:01:08.3]} 26. Re3 {[%clk
0:01:58.2]} 26... Qa1+ {[%clk 0:01:08.2]} 27. Kh2 {[%clk 0:01:58.2]} 27... Rd8
{[%clk 0:01:01.9]} 28. Qe4 {[%clk 0:01:43.7]} 28... g6 {[%clk 0:01:01.5]} 29.
Rf3 {[%clk 0:01:28.2]} 29... Kg7 {[%clk 0:00:58]} 30. Bb3 {[%clk 0:01:25.1]}
30... Qe5+ {[%clk 0:00:52.8]} 31. Qxe5 {[%clk 0:01:24.4]} 31... Bxe5+ {[%clk
0:00:53.7]} 32. g3 {[%clk 0:01:24.9]} 32... f5 {[%clk 0:00:53]} 33. Kg2 {[%clk
0:01:23.1]} 33... Rd2 {[%clk 0:00:50.4]} 34. g4 {[%clk 0:01:21.8]} 34... f4
{[%clk 0:00:41.1]} 35. g5 {[%clk 0:01:16.9]} 35... c5 {[%clk 0:00:39.6]} 36. h4
{[%clk 0:01:13.2]} 36... b5 {[%clk 0:00:39.3]} 37. Be6 {[%clk 0:01:02.7]} 37...
c4 {[%clk 0:00:39.4]} 38. a4 {[%clk 0:01:01.5]} 38... c3 {[%clk 0:00:37.3]} 0-1

[Event "*** Titled Tuesday Blitz"]
[Site "Chess.com"]
[Date "2020.05.26"]
[Round "3"]
[White "Kapibara_Warri0r"]
[Black "DariaVoit"]
[Result "0-1"]
[WhiteElo "2088"]
[BlackElo "2473"]
[TimeControl "180+1"]
[EndTime "10:26:50 PDT"]
[Termination "DariaVoit won by resignation"]

1. e4 {[%clk 0:03:00.9]} 1... e6 {[%clk 0:03:00.2]} 2. d4 {[%clk 0:03:00.2]}
2... d5 {[%clk 0:03:00.6]} 3. Nc3 {[%clk 0:03:00.4]} 3... Bb4 {[%clk 0:03:00.1]}
4. exd5 {[%clk 0:02:59.8]} 4... exd5 {[%clk 0:02:59.4]} 5. Bd3 {[%clk
0:03:00.3]} 5... c5 {[%clk 0:02:57.3]} 6. a3 {[%clk 0:02:51.8]} 6... Bxc3+
{[%clk 0:02:55.3]} 7. bxc3 {[%clk 0:02:52.7]} 7... c4 {[%clk 0:02:55.9]} 8. Be2
{[%clk 0:02:48.4]} 8... Bf5 {[%clk 0:02:53.9]} 9. a4 {[%clk 0:02:45.4]} 9... Nc6
{[%clk 0:02:49]} 10. Nf3 {[%clk 0:02:31.1]} 10... Nf6 {[%clk 0:02:46.6]} 11. Ba3
{[%clk 0:02:18.9]} 11... Ne4 {[%clk 0:02:46.4]} 12. O-O {[%clk 0:01:49.4]} 12...
Nxc3 {[%clk 0:02:45.7]} 13. Qe1 {[%clk 0:01:49.3]} 13... Ne4 {[%clk 0:02:30.2]}
14. Nd2 {[%clk 0:01:22.1]} 14... Kd7 {[%clk 0:02:08.7]} 15. Nxe4 {[%clk
0:01:18.9]} 15... Bxe4 {[%clk 0:02:09.6]} 16. Bg4+ {[%clk 0:00:33.9]} 16... Kc7
{[%clk 0:02:09.4]} 17. Qd2 {[%clk 0:00:28.4]} 17... Qf6 {[%clk 0:02:03.7]} 18.
f3 {[%clk 0:00:24.6]} 18... Bg6 {[%clk 0:02:00.1]} 19. c3 {[%clk 0:00:20.9]}
19... Rae8 {[%clk 0:01:45.5]} 20. Rfe1 {[%clk 0:00:20.4]} 20... h5 {[%clk
0:01:30.1]} 21. Bh3 {[%clk 0:00:20.1]} 21... Na5 {[%clk 0:01:25.8]} 22. Qf2
{[%clk 0:00:16.2]} 22... h4 {[%clk 0:01:11.5]} 23. g3 {[%clk 0:00:15.2]} 23...
Nb3 {[%clk 0:01:10.7]} 24. Rab1 {[%clk 0:00:14]} 24... Bxb1 {[%clk 0:01:02.8]}
25. Rxb1 {[%clk 0:00:10.9]} 25... hxg3 {[%clk 0:01:02.2]} 26. Qxg3+ {[%clk
0:00:11.4]} 26... Kc6 {[%clk 0:01:02.4]} 27. Kh1 {[%clk 0:00:09]} 27... Re3
{[%clk 0:00:58.6]} 28. Qg4 {[%clk 0:00:07.9]} 28... Qxf3+ {[%clk 0:00:58.1]} 29.
Qxf3 {[%clk 0:00:07.1]} 29... Rxf3 {[%clk 0:00:59]} 30. Bg2 {[%clk 0:00:05.7]}
30... Rxc3 {[%clk 0:00:58.9]} 0-1

[Event "*** Titled Tuesday Blitz"]
[Site "Chess.com"]
[Date "2020.05.26"]
[Round "3"]
[White "MarcoRiehle"]
[Black "VojtechPlat"]
[Result "0-1"]
[WhiteElo "2646"]
[BlackElo "2896"]
[TimeControl "180+1"]
[EndTime "10:26:51 PDT"]
[Termination "VojtechPlat won by resignation"]

1. e4 {[%clk 0:02:59]} 1... d6 {[%clk 0:02:59.5]} 2. d4 {[%clk 0:02:58.1]} 2...
Nf6 {[%clk 0:02:59.6]} 3. f3 {[%clk 0:02:58.4]} 3... e5 {[%clk 0:02:58.7]} 4. d5
{[%clk 0:02:58.2]} 4... c6 {[%clk 0:02:58.8]} 5. c4 {[%clk 0:02:57.8]} 5... Be7
{[%clk 0:02:58.4]} 6. Be3 {[%clk 0:02:57]} 6... a5 {[%clk 0:02:58.3]} 7. Qd2
{[%clk 0:02:57.3]} 7... O-O {[%clk 0:02:58]} 8. Nc3 {[%clk 0:02:57.8]} 8... Nbd7
{[%clk 0:02:57.7]} 9. Bd3 {[%clk 0:02:57.6]} 9... a4 {[%clk 0:02:56]} 10. Nge2
{[%clk 0:02:57.7]} 10... Qa5 {[%clk 0:02:54.5]} 11. O-O {[%clk 0:02:56.7]} 11...
Nc5 {[%clk 0:02:54.3]} 12. Bc2 {[%clk 0:02:55.8]} 12... Bd7 {[%clk 0:02:54.1]}
13. Rfd1 {[%clk 0:02:48.5]} 13... cxd5 {[%clk 0:02:50.7]} 14. Nxd5 {[%clk
0:02:42]} 14... Nxd5 {[%clk 0:02:50.1]} 15. Qxa5 {[%clk 0:02:41]} 15... Rxa5
{[%clk 0:02:46.2]} 16. exd5 {[%clk 0:02:38.8]} 16... Rc8 {[%clk 0:02:45.2]} 17.
b4 {[%clk 0:02:35.8]} 17... axb3 {[%clk 0:02:44.6]} 18. axb3 {[%clk 0:02:36.7]}
18... Rxa1 {[%clk 0:02:40.9]} 19. Rxa1 {[%clk 0:02:37.6]} 19... Na6 {[%clk
0:02:41.1]} 20. Nc3 {[%clk 0:02:33.5]} 20... f5 {[%clk 0:02:34.4]} 21. Bd1
{[%clk 0:02:16.7]} 21... Bf6 {[%clk 0:02:31.8]} 22. Na4 {[%clk 0:02:08.1]} 22...
e4 {[%clk 0:02:29.2]} 23. Ra3 {[%clk 0:02:06.1]} 23... Bxa4 {[%clk 0:02:26.4]}
24. Rxa4 {[%clk 0:02:03.6]} 24... exf3 {[%clk 0:02:26.5]} 25. gxf3 {[%clk
0:02:00.4]} 25... Kf7 {[%clk 0:02:22.8]} 26. Ra5 {[%clk 0:01:54.9]} 26... Bc3
{[%clk 0:02:15.4]} 27. Rb5 {[%clk 0:01:52.9]} 27... Rc7 {[%clk 0:02:15.5]} 28.
Bc2 {[%clk 0:01:30.8]} 28... g6 {[%clk 0:02:14]} 29. Kg2 {[%clk 0:01:29.8]}
29... Bb4 {[%clk 0:02:13]} 30. h4 {[%clk 0:01:25.3]} 30... Bc5 {[%clk
0:02:12.9]} 31. Bf4 {[%clk 0:01:24.5]} 31... b6 {[%clk 0:01:55.8]} 32. Bxd6
{[%clk 0:01:16.8]} 32... Bxd6 {[%clk 0:01:55.4]} 33. Rxb6 {[%clk 0:01:17.1]}
33... Nb4 {[%clk 0:01:55.6]} 34. Bxf5 {[%clk 0:01:09]} 34... Bc5 {[%clk
0:01:46.9]} 35. Be6+ {[%clk 0:01:08.2]} 35... Kf6 {[%clk 0:01:44.6]} 36. Rb8
{[%clk 0:01:07.8]} 36... Nd3 {[%clk 0:01:42.8]} 37. Kf1 {[%clk 0:00:56.2]} 37...
Nf4 {[%clk 0:01:41.9]} 38. b4 {[%clk 0:00:48.3]} 38... Be3 {[%clk 0:01:38.8]}
39. c5 {[%clk 0:00:41.3]} 39... Ra7 {[%clk 0:01:37.7]} 40. Rf8+ {[%clk
0:00:27.1]} 40... Ke5 {[%clk 0:01:37.3]} 41. Rxf4 {[%clk 0:00:25.6]} 41... Bxf4
{[%clk 0:01:25.6]} 42. b5 {[%clk 0:00:25.2]} 42... Kd4 {[%clk 0:01:19.5]} 43. b6
{[%clk 0:00:16.5]} 43... Ra1+ {[%clk 0:01:18.7]} 44. Kg2 {[%clk 0:00:16.7]}
44... Kxc5 {[%clk 0:01:18.9]} 0-1

[Event "*** Titled Tuesday Blitz"]
[Site "Chess.com"]
[Date "2020.05.26"]
[Round "3"]
[White "VishnuPrasanna"]
[Black "Sychev_Klementy"]
[Result "0-1"]
[WhiteElo "2637"]
[BlackElo "2870"]
[TimeControl "180+1"]
[EndTime "10:26:52 PDT"]
[Termination "Sychev_Klementy won by resignation"]

1. d4 {[%clk 0:03:00.9]} 1... Nf6 {[%clk 0:02:59.8]} 2. c4 {[%clk 0:03:01.5]}
2... g6 {[%clk 0:03:00.2]} 3. Nf3 {[%clk 0:03:02.1]} 3... Bg7 {[%clk 0:02:59.7]}
4. Nc3 {[%clk 0:03:02.7]} 4... d5 {[%clk 0:02:59.9]} 5. cxd5 {[%clk 0:03:02.4]}
5... Nxd5 {[%clk 0:03:00.8]} 6. e4 {[%clk 0:03:02.8]} 6... Nxc3 {[%clk
0:03:01.2]} 7. bxc3 {[%clk 0:03:03.2]} 7... c5 {[%clk 0:03:01.9]} 8. Bb5+ {[%clk
0:03:03.5]} 8... Nc6 {[%clk 0:03:00.6]} 9. Rb1 {[%clk 0:03:03.8]} 9... O-O
{[%clk 0:02:58.3]} 10. d5 {[%clk 0:03:03.2]} 10... Ne5 {[%clk 0:02:55.7]} 11.
O-O {[%clk 0:02:59]} 11... Nxf3+ {[%clk 0:02:24]} 12. Qxf3 {[%clk 0:02:57.4]}
12... f5 {[%clk 0:02:23.4]} 13. e5 {[%clk 0:02:38.1]} 13... Bxe5 {[%clk
0:02:22]} 14. Re1 {[%clk 0:02:34.8]} 14... Qd6 {[%clk 0:02:18]} 15. Bh6 {[%clk
0:02:32.4]} 15... Rd8 {[%clk 0:01:49.9]} 16. Bc4 {[%clk 0:02:17.3]} 16... Kh8
{[%clk 0:01:29.7]} 17. Rxe5 {[%clk 0:01:48.3]} 17... Qxe5 {[%clk 0:01:28.1]} 18.
Bf4 {[%clk 0:01:48.8]} 18... Qe4 {[%clk 0:01:17.5]} 19. Qxe4 {[%clk 0:01:23.6]}
19... fxe4 {[%clk 0:01:16.6]} 20. Re1 {[%clk 0:01:21.3]} 20... Bf5 {[%clk
0:00:37]} 21. g4 {[%clk 0:01:21]} 21... Bxg4 {[%clk 0:00:35.7]} 22. Rxe4 {[%clk
0:01:21.3]} 22... Bf3 {[%clk 0:00:19.8]} 23. Rxe7 {[%clk 0:01:12.9]} 23... Bxd5
{[%clk 0:00:18.7]} 24. Be5+ {[%clk 0:00:58.1]} 24... Kg8 {[%clk 0:00:18.7]} 25.
Rg7+ {[%clk 0:00:58.2]} 25... Kf8 {[%clk 0:00:18.7]} 26. Bb5 {[%clk 0:00:58.4]}
26... Re8 {[%clk 0:00:14.2]} 27. Bxe8 {[%clk 0:00:50.9]} 27... Rxe8 {[%clk
0:00:13.6]} 28. Rd7 {[%clk 0:00:51.4]} 28... Rxe5 {[%clk 0:00:13.2]} 29. f4
{[%clk 0:00:51.9]} 29... Rf5 {[%clk 0:00:13.4]} 0-1